[Event "Late-Titled-Tuesday-Blitz-February-27-2024"]
[Site "Chess.com"]
[Date "2024.02.27"]
[Round "5"]
[White "Elsa167"]
[Black "Rutricks"]
[Result "1/2-1/2"]
[WhiteElo "2897"]
[BlackElo "2692"]
[TimeControl "180+1"]
[EndTime "14:57:46 PST"]
[Termination "Game drawn by stalemate"]

1. e4 {[%clk 0:02:56.9]} 1... g6 {[%clk 0:02:58]} 2. d4 {[%clk 0:02:52.6]} 2...
Bg7 {[%clk 0:02:58.9]} 3. Nc3 {[%clk 0:02:53]} 3... c6 {[%clk 0:02:59.5]} 4. Nf3
{[%clk 0:02:50.3]} 4... d5 {[%clk 0:03:00]} 5. h3 {[%clk 0:02:50.7]} 5... dxe4
{[%clk 0:03:00.9]} 6. Nxe4 {[%clk 0:02:51.3]} 6... Nf6 {[%clk 0:03:01.8]} 7.
Nxf6+ {[%clk 0:02:50.4]} 7... exf6 {[%clk 0:03:02.7]} 8. Bc4 {[%clk 0:02:49.9]}
8... O-O {[%clk 0:03:03.6]} 9. O-O {[%clk 0:02:49.9]} 9... a5 {[%clk 0:03:04.5]}
10. a4 {[%clk 0:02:49.9]} 10... Na6 {[%clk 0:03:05.4]} 11. Re1 {[%clk 0:02:49]}
11... Nb4 {[%clk 0:03:05.8]} 12. Bd2 {[%clk 0:02:46.4]} 12... Bf5 {[%clk
0:03:06]} 13. Bb3 {[%clk 0:02:36.3]} 13... Qd6 {[%clk 0:03:04.5]} 14. Bxb4
{[%clk 0:02:27.8]} 14... Qxb4 {[%clk 0:02:53.9]} 15. Qd2 {[%clk 0:02:20.7]}
15... Qd6 {[%clk 0:02:48.1]} 16. Re2 {[%clk 0:02:14.2]} 16... Rfd8 {[%clk
0:02:45.5]} 17. Rae1 {[%clk 0:02:11.5]} 17... Bf8 {[%clk 0:02:45.9]} 18. c3
{[%clk 0:01:59]} 18... Bd7 {[%clk 0:02:26.7]} 19. Qd1 {[%clk 0:01:47.8]} 19...
Re8 {[%clk 0:02:20.5]} 20. Nd2 {[%clk 0:01:47.6]} 20... Rxe2 {[%clk 0:01:51.4]}
21. Rxe2 {[%clk 0:01:48.5]} 21... Kg7 {[%clk 0:01:51.9]} 22. Ne4 {[%clk
0:01:42]} 22... Qc7 {[%clk 0:01:51.7]} 23. Re3 {[%clk 0:01:16.3]} 23... Re8
{[%clk 0:01:16.4]} 24. Qf3 {[%clk 0:01:14.6]} 24... Bf5 {[%clk 0:01:13.9]} 25.
Ng3 {[%clk 0:00:53.7]} 25... Bd7 {[%clk 0:01:14.1]} 26. Rxe8 {[%clk 0:00:48.4]}
26... Bxe8 {[%clk 0:01:15]} 27. Ne4 {[%clk 0:00:34.9]} 27... Be7 {[%clk
0:01:15.4]} 28. Nc5 {[%clk 0:00:29.5]} 28... Bxc5 {[%clk 0:01:12.3]} 29. dxc5
{[%clk 0:00:30.4]} 29... Qe5 {[%clk 0:01:13]} 30. Qe3 {[%clk 0:00:23.3]} 30...
Bd7 {[%clk 0:00:47.7]} 31. Qd4 {[%clk 0:00:20.2]} 31... Bf5 {[%clk 0:00:41.5]}
32. g4 {[%clk 0:00:13.1]} 32... Be4 {[%clk 0:00:39.7]} 33. Bc4 {[%clk
0:00:03.7]} 33... Qf4 {[%clk 0:00:27.7]} 34. Qe3 {[%clk 0:00:01.8]} 34... Qe5
{[%clk 0:00:15.8]} 35. f4 {[%clk 0:00:01.4]} 35... Qe7 {[%clk 0:00:13.2]} 36.
Bd3 {[%clk 0:00:01.8]} 36... f5 {[%clk 0:00:12.1]} 37. gxf5 {[%clk 0:00:02.4]}
37... gxf5 {[%clk 0:00:13]} 38. Kf2 {[%clk 0:00:02.5]} 38... Qh4+ {[%clk
0:00:12.4]} 39. Kg1 {[%clk 0:00:03]} 39... Bxd3 {[%clk 0:00:11.4]} 40. Qxd3
{[%clk 0:00:03.9]} 40... Qxf4 {[%clk 0:00:11.7]} 41. Qd7 {[%clk 0:00:04.2]}
41... Qg3+ {[%clk 0:00:10.4]} 42. Kh1 {[%clk 0:00:04.7]} 42... Qxh3+ {[%clk
0:00:11]} 43. Kg1 {[%clk 0:00:05.2]} 43... Qe3+ {[%clk 0:00:11.1]} 44. Kh1
{[%clk 0:00:06.1]} 44... Qxc5 {[%clk 0:00:11.3]} 45. Qxb7 {[%clk 0:00:05.5]}
45... Qd5+ {[%clk 0:00:11.1]} 46. Kg1 {[%clk 0:00:05.5]} 46... Qd1+ {[%clk
0:00:11.2]} 47. Kf2 {[%clk 0:00:05.5]} 47... Qxa4 {[%clk 0:00:11.2]} 48. Qe7
{[%clk 0:00:03.5]} 48... Qc2+ {[%clk 0:00:11.2]} 49. Kg1 {[%clk 0:00:03.5]}
49... Qc1+ {[%clk 0:00:11.4]} 50. Kh2 {[%clk 0:00:03.5]} 50... Qxb2+ {[%clk
0:00:11.9]} 51. Kh1 {[%clk 0:00:03.4]} 51... Qc1+ {[%clk 0:00:12.2]} 52. Kh2
{[%clk 0:00:04]} 52... Qh6+ {[%clk 0:00:12.2]} 53. Kg1 {[%clk 0:00:04.5]} 53...
Qf6 {[%clk 0:00:07.8]} 54. Qa7 {[%clk 0:00:03.8]} 54... Qxc3 {[%clk 0:00:06.9]}
55. Qf2 {[%clk 0:00:03.6]} 55... Qc1+ {[%clk 0:00:05.7]} 56. Kg2 {[%clk
0:00:04.5]} 56... Qg5+ {[%clk 0:00:06.1]} 57. Kf1 {[%clk 0:00:05]} 57... f4
{[%clk 0:00:06.4]} 58. Qb2+ {[%clk 0:00:03.7]} 58... Kg6 {[%clk 0:00:05.9]} 59.
Qc2+ {[%clk 0:00:03.9]} 59... Kg7 {[%clk 0:00:04.6]} 60. Qc3+ {[%clk 0:00:04]}
60... Qf6 {[%clk 0:00:04.6]} 61. Qf3 {[%clk 0:00:03.7]} 61... a4 {[%clk
0:00:03.7]} 62. Kg1 {[%clk 0:00:03]} 62... h6 {[%clk 0:00:03.8]} 63. Kh1 {[%clk
0:00:03.3]} 63... Qg5 {[%clk 0:00:02.6]} 64. Qc3+ {[%clk 0:00:02.1]} 64... f6
{[%clk 0:00:02.6]} 65. Qxc6 {[%clk 0:00:02.4]} 65... Kg6 {[%clk 0:00:02.8]} 66.
Qxa4 {[%clk 0:00:02]} 66... Qh4+ {[%clk 0:00:03.4]} 67. Kg1 {[%clk 0:00:02.1]}
67... Qg3+ {[%clk 0:00:04]} 68. Kh1 {[%clk 0:00:02.7]} 68... f3 {[%clk
0:00:04.4]} 69. Qe8+ {[%clk 0:00:02.5]} 69... Kf5 {[%clk 0:00:04.2]} 70. Qe4+
{[%clk 0:00:01.5]} 70... Kg5 {[%clk 0:00:02.5]} 71. Qg6+ {[%clk 0:00:01.9]}
71... Kf4 {[%clk 0:00:02.7]} 72. Qxf6+ {[%clk 0:00:02.5]} 72... Ke3 {[%clk
0:00:03.2]} 73. Qd4+ {[%clk 0:00:01.8]} 73... Kxd4 {[%clk 0:00:02.4]} 1/2-1/2

[Event "Late-Titled-Tuesday-Blitz-February-27-2024"]
[Site "Chess.com"]
[Date "2024.02.27"]
[Round "5"]
[White "MiguelEduardoGB"]
[Black "Nick12772"]
[Result "1/2-1/2"]
[WhiteElo "2158"]
[BlackElo "2383"]
[TimeControl "180+1"]
[EndTime "14:57:58 PST"]
[Termination "Game drawn by repetition"]

1. Nf3 {[%clk 0:02:55.8]} 1... Nf6 {[%clk 0:03:00.1]} 2. b3 {[%clk 0:02:53.9]}
2... g6 {[%clk 0:03:00]} 3. Bb2 {[%clk 0:02:47.6]} 3... Bg7 {[%clk 0:03:00.9]}
4. g3 {[%clk 0:02:43]} 4... O-O {[%clk 0:03:01.1]} 5. Bg2 {[%clk 0:02:43.3]}
5... c5 {[%clk 0:03:01.8]} 6. O-O {[%clk 0:02:43.6]} 6... Nc6 {[%clk 0:03:02.5]}
7. c4 {[%clk 0:02:43.9]} 7... d6 {[%clk 0:03:02.7]} 8. d3 {[%clk 0:02:41]} 8...
Rb8 {[%clk 0:03:02.9]} 9. Nc3 {[%clk 0:02:40]} 9... a6 {[%clk 0:03:02.4]} 10.
Nd2 {[%clk 0:02:40.1]} 10... Bd7 {[%clk 0:03:01.9]} 11. e3 {[%clk 0:02:35.2]}
11... b5 {[%clk 0:02:58.2]} 12. Qe2 {[%clk 0:02:17]} 12... Qc8 {[%clk
0:02:54.9]} 13. Rac1 {[%clk 0:02:12.9]} 13... Bh3 {[%clk 0:02:53.5]} 14. f4
{[%clk 0:01:41.9]} 14... Bxg2 {[%clk 0:02:53.1]} 15. Qxg2 {[%clk 0:01:39.7]}
15... b4 {[%clk 0:02:36.9]} 16. Nd1 {[%clk 0:01:31.6]} 16... a5 {[%clk
0:02:31.2]} 17. h3 {[%clk 0:01:15.1]} 17... a4 {[%clk 0:02:30.8]} 18. Nf2 {[%clk
0:01:13.4]} 18... Ra8 {[%clk 0:02:25.6]} 19. Bxf6 {[%clk 0:01:08]} 19... Bxf6
{[%clk 0:02:24.7]} 20. Nfe4 {[%clk 0:01:01.4]} 20... Bg7 {[%clk 0:02:24.4]} 21.
Nf3 {[%clk 0:00:38.4]} 21... axb3 {[%clk 0:02:24]} 22. axb3 {[%clk 0:00:39.3]}
22... Ra3 {[%clk 0:02:23.1]} 23. Rb1 {[%clk 0:00:31.5]} 23... Na5 {[%clk
0:02:23.1]} 24. Ned2 {[%clk 0:00:22.5]} 24... Ra2 {[%clk 0:02:22.3]} 25. g4
{[%clk 0:00:22]} 25... Qb7 {[%clk 0:02:12]} 26. Rf2 {[%clk 0:00:17.5]} 26... Bc3
{[%clk 0:02:10.3]} 27. Ne4 {[%clk 0:00:14.5]} 27... Rxf2 {[%clk 0:02:06.8]} 28.
Qxf2 {[%clk 0:00:14.9]} 28... Bg7 {[%clk 0:02:03.9]} 29. Qh4 {[%clk 0:00:14.4]}
29... Nc6 {[%clk 0:01:40.8]} 30. f5 {[%clk 0:00:13.4]} 30... Ne5 {[%clk
0:01:36.4]} 31. Nxe5 {[%clk 0:00:12]} 31... dxe5 {[%clk 0:01:28.3]} 32. f6
{[%clk 0:00:12.3]} 32... exf6 {[%clk 0:01:23.7]} 33. Nxf6+ {[%clk 0:00:13.2]}
33... Bxf6 {[%clk 0:01:23.6]} 34. Qxf6 {[%clk 0:00:13.9]} 34... Qd7 {[%clk
0:01:18.1]} 35. Rd1 {[%clk 0:00:13.2]} 35... e4 {[%clk 0:01:13.4]} 36. d4 {[%clk
0:00:13.4]} 36... Qc7 {[%clk 0:00:51.7]} 37. Kg2 {[%clk 0:00:13.5]} 37... Qa5
{[%clk 0:00:47.5]} 38. Rd2 {[%clk 0:00:14]} 38... cxd4 {[%clk 0:00:45.3]} 39.
Qxd4 {[%clk 0:00:12.6]} 39... Qa3 {[%clk 0:00:42.7]} 40. Qb2 {[%clk 0:00:12.9]}
40... Qa7 {[%clk 0:00:36.8]} 41. Qd4 {[%clk 0:00:11.7]} 41... Qe7 {[%clk
0:00:33.6]} 42. c5 {[%clk 0:00:10.3]} 42... Rc8 {[%clk 0:00:29.3]} 43. Qxb4
{[%clk 0:00:07.7]} 43... h5 {[%clk 0:00:15.4]} 44. Qd4 {[%clk 0:00:06.6]} 44...
hxg4 {[%clk 0:00:13.2]} 45. hxg4 {[%clk 0:00:07.5]} 45... Qxc5 {[%clk
0:00:09.3]} 46. Qxc5 {[%clk 0:00:07.4]} 46... Rxc5 {[%clk 0:00:10.2]} 47. Rd4
{[%clk 0:00:08]} 47... Rc3 {[%clk 0:00:10.4]} 48. Rxe4 {[%clk 0:00:07.9]} 48...
Rxb3 {[%clk 0:00:11.1]} 49. Kg3 {[%clk 0:00:08.8]} 49... Kg7 {[%clk 0:00:11.3]}
50. Kf3 {[%clk 0:00:08.9]} 50... Rb1 {[%clk 0:00:11.6]} 51. Ke2 {[%clk
0:00:08.9]} 51... Rb2+ {[%clk 0:00:11.9]} 52. Kf3 {[%clk 0:00:09.3]} 52... Rb1
{[%clk 0:00:12.4]} 53. Ke2 {[%clk 0:00:09.8]} 53... Rg1 {[%clk 0:00:13]} 54. Kf2
{[%clk 0:00:10.1]} 54... Rh1 {[%clk 0:00:12.7]} 55. Kg2 {[%clk 0:00:10.2]} 55...
Ra1 {[%clk 0:00:13.1]} 56. Kf3 {[%clk 0:00:10.7]} 56... Ra3 {[%clk 0:00:13.6]}
57. Rd4 {[%clk 0:00:10.5]} 57... Kf6 {[%clk 0:00:13.5]} 58. Rd6+ {[%clk
0:00:10.4]} 58... Kg7 {[%clk 0:00:13.7]} 59. Rd7 {[%clk 0:00:10.8]} 59... Rb3
{[%clk 0:00:14]} 60. Rc7 {[%clk 0:00:10.7]} 60... Ra3 {[%clk 0:00:13.9]} 61. Rd7
{[%clk 0:00:11.3]} 61... Rb3 {[%clk 0:00:14.5]} 62. Rc7 {[%clk 0:00:11.9]} 62...
Rd3 {[%clk 0:00:15.1]} 63. Rb7 {[%clk 0:00:12]} 63... Rd2 {[%clk 0:00:15.5]} 64.
Rc7 {[%clk 0:00:12]} 64... Rd1 {[%clk 0:00:15.9]} 65. Ke2 {[%clk 0:00:11.8]}
65... Ra1 {[%clk 0:00:15.2]} 66. Kf3 {[%clk 0:00:11.7]} 66... Kf6 {[%clk
0:00:15.1]} 67. Rc6+ {[%clk 0:00:11.9]} 67... Ke7 {[%clk 0:00:15.4]} 68. Rc7+
{[%clk 0:00:12.3]} 68... Ke6 {[%clk 0:00:16]} 69. Rc6+ {[%clk 0:00:12.8]} 69...
Kd7 {[%clk 0:00:15.9]} 70. Rb6 {[%clk 0:00:12.6]} 70... Rh1 {[%clk 0:00:15.2]}
71. Rb7+ {[%clk 0:00:12.5]} 71... Ke6 {[%clk 0:00:15.3]} 72. Rb6+ {[%clk
0:00:12.9]} 72... Ke7 {[%clk 0:00:15.8]} 73. Rb7+ {[%clk 0:00:13.2]} 73... Kf6
{[%clk 0:00:15.7]} 74. Kg2 {[%clk 0:00:13.6]} 74... Ra1 {[%clk 0:00:14.4]} 75.
Kf3 {[%clk 0:00:14.1]} 75... Kg7 {[%clk 0:00:14.3]} 76. Rc7 {[%clk 0:00:14.1]}
76... Rb1 {[%clk 0:00:14.3]} 77. Rd7 {[%clk 0:00:14]} 77... Rc1 {[%clk
0:00:14.7]} 78. Rb7 {[%clk 0:00:13.9]} 78... Rd1 {[%clk 0:00:15]} 79. Rc7 {[%clk
0:00:14]} 79... Rf1+ {[%clk 0:00:14.3]} 80. Kg2 {[%clk 0:00:13.9]} 80... Rf6
{[%clk 0:00:14.3]} 81. Kg3 {[%clk 0:00:13.7]} 81... Kf8 {[%clk 0:00:13.2]} 82.
Rc8+ {[%clk 0:00:13.7]} 82... Ke7 {[%clk 0:00:13.7]} 83. Rc7+ {[%clk 0:00:14]}
83... Kd8 {[%clk 0:00:13.3]} 84. Rb7 {[%clk 0:00:13.9]} 84... Kc8 {[%clk
0:00:12.7]} 85. Ra7 {[%clk 0:00:13.9]} 85... Kd8 {[%clk 0:00:12.9]} 86. Rb7
{[%clk 0:00:14.1]} 86... Ke8 {[%clk 0:00:13.1]} 87. Ra7 {[%clk 0:00:14.4]} 87...
Kf8 {[%clk 0:00:13.8]} 88. Rb7 {[%clk 0:00:14.3]} 88... Kg7 {[%clk 0:00:14.4]}
89. Rc7 {[%clk 0:00:14.8]} 89... Re6 {[%clk 0:00:14.7]} 90. Kf3 {[%clk
0:00:14.8]} 90... Ra6 {[%clk 0:00:15]} 91. Kg3 {[%clk 0:00:15]} 91... Ra1 {[%clk
0:00:15.5]} 92. Kf3 {[%clk 0:00:15.5]} 1/2-1/2

[Event "Late-Titled-Tuesday-Blitz-February-27-2024"]
[Site "Chess.com"]
[Date "2024.02.27"]
[Round "6"]
[White "mac0504"]
[Black "Pingah9"]
[Result "1-0"]
[WhiteElo "2718"]
[BlackElo "2564"]
[TimeControl "180+1"]
[EndTime "15:00:39 PST"]
[Termination "mac0504 won by resignation"]

1. c4 {[%clk 0:02:56.4]} 1... g6 {[%clk 0:02:59.2]} 2. Nc3 {[%clk 0:02:57.3]}
2... Bg7 {[%clk 0:02:59.4]} 3. h4 {[%clk 0:02:58]} 3... c5 {[%clk 0:02:56.2]} 4.
h5 {[%clk 0:02:57.9]} 4... Nc6 {[%clk 0:02:55.8]} 5. d3 {[%clk 0:02:57.6]} 5...
d6 {[%clk 0:02:53.3]} 6. h6 {[%clk 0:02:58]} 6... Bf6 {[%clk 0:02:53.4]} 7. Nd5
{[%clk 0:02:53.4]} 7... e6 {[%clk 0:02:43.4]} 8. Nxf6+ {[%clk 0:02:53.2]} 8...
Qxf6 {[%clk 0:02:44.2]} 9. Nf3 {[%clk 0:02:53]} 9... Nd4 {[%clk 0:02:39.5]} 10.
Nxd4 {[%clk 0:02:50.1]} 10... cxd4 {[%clk 0:02:38.4]} 11. Qa4+ {[%clk
0:02:38.1]} 11... Bd7 {[%clk 0:02:37.6]} 12. Qb4 {[%clk 0:02:38.8]} 12... O-O-O
{[%clk 0:02:32.7]} 13. Qxd6 {[%clk 0:02:28.9]} 13... Bc6 {[%clk 0:02:27.1]} 14.
Qc5 {[%clk 0:02:21.6]} 14... b6 {[%clk 0:02:14.8]} 15. Qxc6+ {[%clk 0:02:20.8]}
1-0

[Event "Late-Titled-Tuesday-Blitz-February-27-2024"]
[Site "Chess.com"]
[Date "2024.02.27"]
[Round "6"]
[White "Malev212"]
[Black "dolynachess"]
[Result "0-1"]
[WhiteElo "2643"]
[BlackElo "2480"]
[TimeControl "180+1"]
[EndTime "15:01:32 PST"]
[Termination "dolynachess won by resignation"]

1. e4 {[%clk 0:02:53.1]} 1... c5 {[%clk 0:02:59.4]} 2. Nf3 {[%clk 0:02:52.9]}
2... d6 {[%clk 0:02:59.8]} 3. Bb5+ {[%clk 0:02:51.5]} 3... Bd7 {[%clk
0:02:59.2]} 4. Bxd7+ {[%clk 0:02:51.3]} 4... Qxd7 {[%clk 0:03:00.1]} 5. O-O
{[%clk 0:02:50.8]} 5... Nc6 {[%clk 0:02:59.9]} 6. c3 {[%clk 0:02:48.3]} 6... Nf6
{[%clk 0:02:56.4]} 7. Qe2 {[%clk 0:02:47.7]} 7... e6 {[%clk 0:02:55.8]} 8. d4
{[%clk 0:02:46.9]} 8... cxd4 {[%clk 0:02:56.7]} 9. cxd4 {[%clk 0:02:47.1]} 9...
d5 {[%clk 0:02:56.8]} 10. e5 {[%clk 0:02:47.2]} 10... Ne4 {[%clk 0:02:57.1]} 11.
Be3 {[%clk 0:02:47.7]} 11... Be7 {[%clk 0:02:56.1]} 12. Ne1 {[%clk 0:02:47.6]}
12... h6 {[%clk 0:02:47.4]} 13. f3 {[%clk 0:02:46.9]} 13... Ng5 {[%clk
0:02:45.2]} 14. Nd3 {[%clk 0:02:46.8]} 14... O-O {[%clk 0:02:36.9]} 15. Nd2
{[%clk 0:02:46.1]} 15... f6 {[%clk 0:02:30.9]} 16. Rac1 {[%clk 0:02:43.4]} 16...
fxe5 {[%clk 0:02:26]} 17. dxe5 {[%clk 0:02:41.9]} 17... Rac8 {[%clk 0:02:06.2]}
18. f4 {[%clk 0:02:41.6]} 18... Ne4 {[%clk 0:01:55.1]} 19. Nxe4 {[%clk
0:02:38.9]} 19... dxe4 {[%clk 0:01:56]} 20. Nc5 {[%clk 0:02:36.9]} 20... Nd4
{[%clk 0:01:46.6]} 21. Nxd7 {[%clk 0:02:18.3]} 21... Nxe2+ {[%clk 0:01:46.1]}
22. Kf2 {[%clk 0:02:18.3]} 22... Nxc1 {[%clk 0:01:45.1]} 0-1

[Event "Late-Titled-Tuesday-Blitz-February-27-2024"]
[Site "Chess.com"]
[Date "2024.02.27"]
[Round "6"]
[White "EDaMatta"]
[Black "DeArron_Fox"]
[Result "0-1"]
[WhiteElo "2244"]
[BlackElo "2474"]
[TimeControl "180+1"]
[EndTime "15:01:54 PST"]
[Termination "DeArron_Fox won by resignation"]

1. d4 {[%clk 0:02:33.3]} 1... d5 {[%clk 0:02:59]} 2. c4 {[%clk 0:02:33.3]} 2...
e6 {[%clk 0:02:59.1]} 3. Nc3 {[%clk 0:02:33.7]} 3... Nf6 {[%clk 0:02:59.6]} 4.
Bg5 {[%clk 0:02:32.9]} 4... Be7 {[%clk 0:03:00.2]} 5. e3 {[%clk 0:02:30.7]} 5...
O-O {[%clk 0:02:57.6]} 6. Qc2 {[%clk 0:02:30.1]} 6... h6 {[%clk 0:02:56.9]} 7.
Bh4 {[%clk 0:02:18.6]} 7... b6 {[%clk 0:02:55.9]} 8. Nf3 {[%clk 0:02:16.1]} 8...
Bb7 {[%clk 0:02:55.5]} 9. Bd3 {[%clk 0:02:10]} 9... Nbd7 {[%clk 0:02:55.3]} 10.
cxd5 {[%clk 0:02:08.7]} 10... Nxd5 {[%clk 0:02:55.1]} 11. Bxe7 {[%clk
0:02:05.7]} 11... Qxe7 {[%clk 0:02:56]} 12. a3 {[%clk 0:02:05.7]} 12... c5
{[%clk 0:02:55.2]} 13. O-O {[%clk 0:01:57.8]} 13... Rac8 {[%clk 0:02:55.6]} 14.
Qe2 {[%clk 0:01:49.6]} 14... cxd4 {[%clk 0:02:51.6]} 15. Nxd5 {[%clk 0:01:42.5]}
15... Bxd5 {[%clk 0:02:52.5]} 16. Nxd4 {[%clk 0:01:40.2]} 16... Qg5 {[%clk
0:02:31.4]} 17. e4 {[%clk 0:01:30.4]} 17... Bb7 {[%clk 0:02:29.4]} 18. f4 {[%clk
0:01:15.6]} 18... Qc5 {[%clk 0:02:23.9]} 19. Qf2 {[%clk 0:01:16.1]} 19... Nf6
{[%clk 0:02:24]} 20. e5 {[%clk 0:01:12.5]} 20... Ng4 {[%clk 0:02:21.8]} 0-1

[Event "Late-Titled-Tuesday-Blitz-February-27-2024"]
[Site "Chess.com"]
[Date "2024.02.27"]
[Round "6"]
[White "jodarmarlon1985"]
[Black "HajiyevKanan"]
[Result "0-1"]
[WhiteElo "2245"]
[BlackElo "2482"]
[TimeControl "180+1"]
[EndTime "15:01:54 PST"]
[Termination "HajiyevKanan won by resignation"]

1. e4 {[%clk 0:03:00.9]} 1... c6 {[%clk 0:02:57.7]} 2. Nf3 {[%clk 0:03:00.3]}
2... d5 {[%clk 0:02:58.6]} 3. exd5 {[%clk 0:03:00.5]} 3... cxd5 {[%clk 0:02:59]}
4. Ne5 {[%clk 0:03:00.8]} 4... Nc6 {[%clk 0:02:59.1]} 5. d4 {[%clk 0:03:00.8]}
5... Qb6 {[%clk 0:02:55.6]} 6. c3 {[%clk 0:02:57.4]} 6... Bf5 {[%clk 0:02:52.9]}
7. Bd3 {[%clk 0:02:52]} 7... Bxd3 {[%clk 0:02:51]} 8. Qxd3 {[%clk 0:02:52.9]}
8... e6 {[%clk 0:02:51.4]} 9. O-O {[%clk 0:02:50.2]} 9... Bd6 {[%clk 0:02:50.8]}
10. Re1 {[%clk 0:02:48.9]} 10... Nf6 {[%clk 0:02:49.2]} 11. Qg3 {[%clk
0:02:41.1]} 11... O-O {[%clk 0:02:40.7]} 12. Nd2 {[%clk 0:02:09.9]} 12... Rfe8
{[%clk 0:02:28.1]} 13. Ndf3 {[%clk 0:02:05.5]} 13... Ne4 {[%clk 0:02:27.9]} 14.
Qg4 {[%clk 0:01:37.7]} 14... Nxe5 {[%clk 0:02:25.2]} 15. dxe5 {[%clk 0:01:17.8]}
15... Qxf2+ {[%clk 0:02:22.5]} 16. Kh1 {[%clk 0:01:17.8]} 16... Bc5 {[%clk
0:02:15.3]} 17. Bh6 {[%clk 0:01:13.5]} 17... Qg1+ {[%clk 0:02:13.8]} 0-1

[Event "Late-Titled-Tuesday-Blitz-February-27-2024"]
[Site "Chess.com"]
[Date "2024.02.27"]
[Round "6"]
[White "Narek_Ghimoyan"]
[Black "otrov-11"]
[Result "1-0"]
[WhiteElo "2415"]
[BlackElo "2609"]
[TimeControl "180+1"]
[EndTime "15:02:09 PST"]
[Termination "Narek_Ghimoyan won by resignation"]

1. d4 {[%clk 0:03:00.9]} 1... Nf6 {[%clk 0:02:59.7]} 2. c4 {[%clk 0:03:01]} 2...
e6 {[%clk 0:03:00.2]} 3. Nf3 {[%clk 0:03:00.8]} 3... b6 {[%clk 0:03:00.3]} 4. g3
{[%clk 0:03:00.6]} 4... Bb7 {[%clk 0:03:00.8]} 5. Bg2 {[%clk 0:03:01.2]} 5...
Be7 {[%clk 0:03:01.5]} 6. O-O {[%clk 0:03:01]} 6... O-O {[%clk 0:03:02.2]} 7. d5
{[%clk 0:03:01.4]} 7... exd5 {[%clk 0:03:03.1]} 8. Nh4 {[%clk 0:03:01.7]} 8...
c6 {[%clk 0:03:03.7]} 9. cxd5 {[%clk 0:03:01.4]} 9... Nxd5 {[%clk 0:03:04.6]}
10. Nf5 {[%clk 0:03:01.8]} 10... Nc7 {[%clk 0:03:04.6]} 11. e4 {[%clk
0:02:58.7]} 11... d5 {[%clk 0:03:04.9]} 12. Nc3 {[%clk 0:02:59]} 12... Bf6
{[%clk 0:03:03.8]} 13. Re1 {[%clk 0:02:52.2]} 13... Re8 {[%clk 0:02:49.8]} 14.
Bf4 {[%clk 0:02:47.7]} 14... Nba6 {[%clk 0:02:49.7]} 15. Nd6 {[%clk 0:02:45.9]}
15... Bc8 {[%clk 0:02:43.6]} 16. Nxe8 {[%clk 0:02:43.9]} 16... Nxe8 {[%clk
0:02:30.3]} 17. exd5 {[%clk 0:02:43.9]} 17... Nc5 {[%clk 0:01:50.8]} 18. dxc6
{[%clk 0:02:39.7]} 18... Be6 {[%clk 0:01:43.1]} 19. c7 {[%clk 0:02:37.2]} 19...
Nxc7 {[%clk 0:01:43]} 20. Bxa8 {[%clk 0:02:34.7]} 20... Qxa8 {[%clk 0:01:42.1]}
21. Bxc7 {[%clk 0:02:34.4]} 21... g6 {[%clk 0:01:30.2]} 22. Bd6 {[%clk
0:02:28.3]} 22... Nd7 {[%clk 0:01:26.9]} 23. Be7 {[%clk 0:02:13.4]} 23... Bxe7
{[%clk 0:01:22]} 24. Rxe6 {[%clk 0:02:12.7]} 1-0

[Event "Late-Titled-Tuesday-Blitz-February-27-2024"]
[Site "Chess.com"]
[Date "2024.02.27"]
[Round "6"]
[White "jk13"]
[Black "cthulhuuu"]
[Result "1-0"]
[WhiteElo "2674"]
[BlackElo "2434"]
[TimeControl "180+1"]
[EndTime "15:02:27 PST"]
[Termination "jk13 won by resignation"]

1. e4 {[%clk 0:03:00.9]} 1... d6 {[%clk 0:02:59.1]} 2. d4 {[%clk 0:03:00.5]}
2... Nf6 {[%clk 0:02:59.3]} 3. Nc3 {[%clk 0:03:01.4]} 3... c6 {[%clk 0:02:59.4]}
4. f4 {[%clk 0:03:00.7]} 4... Qb6 {[%clk 0:02:59.5]} 5. e5 {[%clk 0:03:00.3]}
5... Nd5 {[%clk 0:02:59.1]} 6. Nxd5 {[%clk 0:03:00.2]} 6... cxd5 {[%clk
0:03:00]} 7. c3 {[%clk 0:03:00.2]} 7... Bf5 {[%clk 0:02:59.6]} 8. Nf3 {[%clk
0:02:55]} 8... Nc6 {[%clk 0:02:58.7]} 9. Bd3 {[%clk 0:02:54.3]} 9... Bxd3 {[%clk
0:02:57.9]} 10. Qxd3 {[%clk 0:02:53.9]} 10... e6 {[%clk 0:02:58.2]} 11. O-O
{[%clk 0:02:54]} 11... g6 {[%clk 0:02:55.1]} 12. Kh1 {[%clk 0:02:51.1]} 12... a6
{[%clk 0:02:54.2]} 13. Rb1 {[%clk 0:02:46.4]} 13... Qb5 {[%clk 0:02:52.7]} 14.
Qd1 {[%clk 0:02:44.2]} 14... Na5 {[%clk 0:02:47.5]} 15. Be3 {[%clk 0:02:35.1]}
15... Rc8 {[%clk 0:02:33.1]} 16. Bf2 {[%clk 0:02:33.4]} 16... Be7 {[%clk
0:02:15.2]} 17. Qe1 {[%clk 0:02:25.7]} 17... Qd3 {[%clk 0:02:00.2]} 18. Bh4
{[%clk 0:02:23.4]} 18... Nc6 {[%clk 0:01:19.6]} 19. Bxe7 {[%clk 0:02:22]} 19...
Nxe7 {[%clk 0:01:20.5]} 20. exd6 {[%clk 0:02:19.3]} 20... Nc6 {[%clk 0:01:09.9]}
21. Ne5 {[%clk 0:02:13.9]} 21... O-O {[%clk 0:00:53.3]} 22. Nxd3 {[%clk
0:02:13.4]} 1-0

[Event "Late-Titled-Tuesday-Blitz-February-27-2024"]
[Site "Chess.com"]
[Date "2024.02.27"]
[Round "6"]
[White "Fonsofan"]
[Black "Beca95"]
[Result "0-1"]
[WhiteElo "2756"]
[BlackElo "2942"]
[TimeControl "180+1"]
[EndTime "15:02:50 PST"]
[Termination "Beca95 won by resignation"]

1. b4 {[%clk 0:02:55]} 1... e5 {[%clk 0:02:58.8]} 2. Bb2 {[%clk 0:02:52.6]} 2...
Bxb4 {[%clk 0:02:58.7]} 3. Bxe5 {[%clk 0:02:53.2]} 3... Nf6 {[%clk 0:02:58.9]}
4. Nf3 {[%clk 0:02:53.2]} 4... O-O {[%clk 0:02:58.9]} 5. e3 {[%clk 0:02:53.2]}
5... d5 {[%clk 0:02:59]} 6. Be2 {[%clk 0:02:52.7]} 6... c5 {[%clk 0:02:58.7]} 7.
O-O {[%clk 0:02:47.9]} 7... Nc6 {[%clk 0:02:58.6]} 8. Bg3 {[%clk 0:02:42.2]}
8... Re8 {[%clk 0:02:57.3]} 9. d4 {[%clk 0:02:11.7]} 9... c4 {[%clk 0:02:56.2]}
10. Bh4 {[%clk 0:02:05.1]} 10... h6 {[%clk 0:02:54.5]} 11. a3 {[%clk 0:01:59.2]}
11... Ba5 {[%clk 0:02:54]} 12. Bxf6 {[%clk 0:01:27.3]} 12... Qxf6 {[%clk
0:02:53.4]} 13. Nbd2 {[%clk 0:01:28]} 13... Bf5 {[%clk 0:02:52.9]} 14. Rb1
{[%clk 0:01:21.5]} 14... Rab8 {[%clk 0:02:51.9]} 15. Rb5 {[%clk 0:01:21.5]}
15... Qd6 {[%clk 0:02:50.3]} 16. Qb1 {[%clk 0:01:12]} 16... Bd7 {[%clk
0:02:38.7]} 17. e4 {[%clk 0:00:56.7]} 17... dxe4 {[%clk 0:02:28.5]} 18. Nxc4
{[%clk 0:00:49.7]} 18... Qc7 {[%clk 0:02:28.7]} 19. Nfe5 {[%clk 0:00:16.2]}
19... Nxd4 {[%clk 0:02:28.8]} 20. Rxa5 {[%clk 0:00:16.1]} 20... Nxe2+ {[%clk
0:02:29.1]} 21. Kh1 {[%clk 0:00:16.6]} 21... b6 {[%clk 0:02:29.5]} 22. Rd5
{[%clk 0:00:14.1]} 22... Be6 {[%clk 0:02:29.7]} 0-1